bitfinex-derivatives/quotes_ETHF0:USTF0_20241008
["timestamp","ask_amount","ask_price","bid_price","bid_amount"]
[1728375511580,3.22,2428.4,2427.8,0.096]
[1728375511889,0.41199,2428.1,2427.8,0.81183]
[1728375513775,3.2078,2428.2,2427.8,0.3998]
[1728375513976,0.41201,2428.0,2427.8,0.3998]
[1728375514479,0.41202,2427.9,2427.8,0.3998]
[1728375514874,0.41201,2428.0,2427.8,0.3998]
[1728375515079,0.41199,2428.1,2427.8,0.81183]
[1728375515471,0.41199,2428.1,2427.8,0.81182]
[1728375522982,3.46081247,2428.5,2427.9,3.22]
[1728375523181,0.41191,2428.6,2428.3,0.41194]
[1728375523488,0.80019,2428.7,2428.4,1.21723]
[1728375524390,0.80019,2428.7,2428.5,0.41192]
[1728375524585,0.4119,2428.6,2428.4,1.21723]
[1728375528391,0.4119,2428.6,2428.4,0.8053]
[1728375528696,3.2078,2428.5,2428.4,0.8053]
[1728375528988,3.2078,2428.5,2428.4,1.21723]
[1728375531787,3.2078,2428.5,2428.4,0.8053]
[1728375531988,0.412,2428.0,2427.9,0.096]
[1728375532189,0.41203,2427.9,2427.6,0.3995]
[1728375532491,0.81133,2427.9,2427.7,0.41205]
[1728375534584,0.3993,2427.9,2427.7,0.41205]
[1728375535685,0.81132,2427.9,2427.7,0.41205]
[1728375535889,0.3993,2427.9,2427.7,0.41205]
[1728375536190,0.3993,2427.9,2427.8,0.3998]
[1728375537591,3.2078,2428.0,2427.8,0.81183]
[1728375538310,3.2078,2428.0,2427.9,0.41202]
[1728375538791,0.4272,2428.5,2428.3,0.41194]
[1728375538993,0.4272,2428.5,2428.1,3.22]
[1728375539187,0.4272,2428.5,2428.3,0.41193]
[1728375540490,0.4272,2428.5,2428.1,3.22]
[1728375540691,0.41194,2428.4,2428.1,3.63197]
[1728375541089,0.41194,2428.4,2428.2,0.41196]
[1728375541292,0.41194,2428.4,2428.3,0.391]
[1728375542393,0.41194,2428.4,2428.1,3.22]
[1728375542394,0.41194,2428.4,2428.1,0.41198]
[1728375542695,0.41194,2428.4,2428.1,0.80298]
[1728375542893,0.41195,2428.4,2428.1,0.80298]
[1728375543287,0.41195,2428.4,2428.2,0.41196]
[1728375543489,3.2078,2428.6,2428.5,0.41192]
[1728375543893,3.22,2429.2,2428.5,0.41192]
[1728375543894,6.4278,2429.4,2428.5,7.3376]
[1728375544095,0.83141,2429.2,2428.9,0.41184]
[1728375544400,0.83141,2429.2,2429.0,0.41183]
[1728375544702,0.4196,2429.2,2428.8,0.4074]
[1728375544993,0.41181,2429.1,2428.8,0.81926]
[1728375545399,0.4196,2429.2,2428.8,0.4074]
[1728375545599,0.83141,2429.2,2428.9,0.41185]
[1728375545800,0.4196,2429.2,2429.0,0.41183]
[1728375546389,3.2078,2429.4,2429.1,3.22]
[1728375546595,3.2078,2429.4,2429.3,0.41178]
[1728375546792,3.2078,2429.4,2429.2,0.82248]
[1728375547096,3.2078,2429.4,2429.3,0.41178]
[1728375547500,3.2078,2429.4,2429.2,0.82248]
[1728375547694,3.2078,2429.4,2429.2,0.4107]
[1728375547903,3.2078,2429.4,2429.3,0.41178]
[1728375548995,3.2078,2429.4,2429.0,0.41182]
[1728375548996,0.41179,2429.3,2429.0,0.41182]
[1728375549197,4.4437,2429.3,2428.8,0.8092]
[1728375549403,0.41181,2429.2,2428.9,0.41184]
[1728375550104,4.85549,2429.3,2429.0,0.41182]
[1728375551895,1.63549,2429.3,2429.0,0.41182]
[1728375552901,1.2237,2429.3,2429.0,0.41182]
[1728375553205,3.2078,2430.0,2429.2,3.22]
[1728375553408,0.4037,2430.0,2429.9,0.41168]
[1728375554201,3.6076,2430.3,2430.0,0.41165]
[1728375554507,3.6076,2430.3,2429.8,0.3964]
[1728375554508,4.0113,2430.3,2430.1,0.41164]
[1728375554707,4.42291,2430.3,2430.0,0.41166]
[1728375555108,4.0113,2430.3,2430.0,0.41166]
[1728375555405,1.02916,2430.0,2429.5,0.096]
[1728375555611,1.02916,2430.0,2429.3,1.12510303]
[1728375555612,3.2078,2429.6,2429.3,1.12510303]
[1728375555799,3.61954,2429.6,2429.3,1.02910303]
[1728375555998,0.41175,2429.5,2429.3,1.02910303]
[1728375556601,3.2078,2429.6,2429.3,1.02910303]
[1728375556812,6.4278,2429.6,2429.3,1.02910303]
[1728375557123,0.41185,2428.9,2428.8,0.096]
[1728375557316,3.2078,2428.9,2428.5,0.41191]
[1728375557610,0.41186,2428.9,2428.6,0.4119]
[1728375557810,3.2078,2428.7,2428.6,0.4119]
[1728375558112,3.2078,2428.7,2428.5,0.41191]
[1728375558314,3.2078,2428.7,2428.2,3.22]
[1728375558315,0.41191,2428.6,2428.2,0.41196]
[1728375558505,3.2078,2428.3,2428.2,0.41196]
[1728375560339,3.2078,2428.3,2427.8,3.22]
[1728375560497,3.61975,2428.3,2427.9,0.41201]
[1728375560698,0.41199,2428.1,2427.7,1.22054]
[1728375560904,0.41199,2428.1,2427.8,0.41203]
[1728375561096,3.2078,2428.0,2427.8,0.41203]
[1728375562605,3.61979,2428.1,2427.8,0.41203]
[1728375563409,3.61979,2428.1,2427.7,0.79704]
[1728375563637,3.61979,2428.1,2427.7,0.385]
[1728375563801,3.61979,2428.1,2427.8,0.41203]
[1728375568307,3.61979,2428.1,2427.7,0.79704]
[1728375568308,0.412,2428.0,2427.7,0.79704]
[1728375569218,3.61979,2428.1,2427.8,0.41203]
[1728375569515,3.2078,2428.1,2427.7,0.385]
[1728375569710,0.4066,2428.0,2427.7,0.385]
[1728375570213,3.61983,2427.8,2427.7,0.385]
[1728375570443,3.61983,2427.8,2427.3,3.2078]
[1728375570444,0.41209,2427.5,2427.3,3.2078]
[1728375570617,3.2078,2427.8,2427.3,3.2078]
[1728375570618,0.4121,2427.4,2427.3,3.2078]
[1728375570919,3.61992,2427.4,2427.2,0.4261]
[1728375571721,0.41212,2427.3,2427.2,0.4261]
[1728375571909,3.61991,2427.4,2427.2,0.4261]
[1728375572208,3.2078,2427.4,2427.2,0.83823]
[1728375573013,3.2078,2427.8,2427.3,7.34]
[1728375573312,3.2078,2427.8,2427.6,0.41206]
[1728375574209,3.2078,2427.8,2427.4,3.6427]
[1728375574411,0.41199,2428.1,2427.8,0.41203]
[1728375574616,0.412,2428.1,2427.8,0.41202]
[1728375574814,0.412,2428.1,2427.9,0.3928]
[1728375576021,0.412,2428.0,2427.9,0.3928]
[1728375578714,6.8146,2428.2,2427.5,0.41208]
[1728375578912,0.41206,2427.7,2427.5,0.426]
[1728375579218,3.2078,2427.9,2427.5,0.426]
[1728375579421,0.41207,2427.7,2427.5,0.426]
[1728375580324,0.41205,2427.8,2427.5,0.426]
[1728375580519,3.61983,2427.9,2427.6,0.41206]
[1728375580717,0.41204,2427.8,2427.6,0.41206]
[1728375581718,3.2078,2427.9,2427.5,0.426]
[1728375581918,0.41207,2427.6,2427.5,0.426]
[1728375582113,3.2078,2427.9,2427.5,0.426]
[1728375582313,3.2078,2427.9,2427.5,0.83808]
[1728375582508,0.41205,2427.7,2427.5,0.83808]
[1728375582914,0.41205,2427.7,2427.5,0.426]
[1728375584421,3.2078,2428.3,2428.0,0.41199]
[1728375584617,0.3934,2428.6,2428.0,3.22]
[1728375584825,3.2078,2428.4,2428.0,0.41199]
[1728375585022,3.61974,2428.4,2428.0,0.41199]
[1728375586214,3.61974,2428.4,2428.1,0.41198]
[1728375589429,3.61974,2428.4,2428.0,3.6271]
[1728375589430,3.2078,2428.4,2428.0,3.6271]
[1728375589626,0.3934,2428.6,2428.5,0.41192]
[1728375591525,0.3934,2428.6,2428.2,3.6131]
[1728375591526,0.3934,2428.6,2428.4,0.41192]
[1728375591734,0.80531,2428.6,2428.4,0.41192]
[1728375592825,0.3934,2428.6,2428.4,0.41192]
[1728375593031,0.8053,2428.6,2428.4,0.41192]
[1728375593832,0.3934,2428.6,2428.4,0.41192]
[1728375595237,0.3934,2428.6,2428.2,0.3931]
[1728375595436,0.3934,2428.6,2428.5,0.41192]
[1728375597827,3.2078,2429.0,2428.2,3.6131]
[1728375598030,0.3885,2428.9,2428.8,0.41187]
[1728375598735,0.66574876,2429.2,2428.6,1.2181]
[1728375598736,0.416,2429.2,2428.6,1.2181]
[1728375598928,0.41182,2429.1,2428.9,0.41184]
[1728375599625,0.8254,2429.2,2428.6,1.2181]
[1728375599846,1.23721,2429.2,2429.0,0.41183]
[1728375600337,0.8254,2429.2,2429.1,0.41181]
[1728375600539,0.4094,2429.2,2429.1,0.41181]
[1728375600729,3.6172,2429.6,2429.2,0.4118]
[1728375600931,3.6172,2429.6,2428.9,3.22]
[1728375601131,0.41177,2429.4,2428.9,3.22]
[1728375601436,0.41177,2429.4,2429.1,0.4118]
[1728375601629,0.41177,2429.4,2429.2,0.4118]
[1728375602440,3.6172,2429.6,2428.9,3.22]
[1728375602741,4.02894,2429.6,2429.4,0.41176]
[1728375603237,8.14494,2429.6,2429.4,0.41176]
[1728375603639,3.6172,2429.6,2429.1,4.0336]
[1728375603832,3.2078,2429.9,2429.8,0.4117]
[1728375604234,7.323,2429.9,2429.8,0.4117]
[1728375604743,3.2078,2429.9,2429.8,0.4117]
[1728375606042,3.2078,2429.9,2429.7,3.22]
[1728375606043,0.4271,2430.1,2430.0,0.41166]
[1728375608241,7.7501,2430.1,2429.8,0.41168]
[1728375608442,4.04656,2430.1,2429.8,0.41169]
[1728375608846,4.04656,2430.1,2429.6,0.4065]
[1728375609137,4.04656,2430.1,2429.8,0.41169]
[1728375609539,4.04656,2430.1,2429.6,0.4065]
[1728375609743,4.04656,2430.1,2429.9,0.41167]
[1728375609744,3.6349,2430.1,2429.9,0.41167]
[1728375610274,8.16175,2430.1,2429.6,0.4065]
[1728375610446,8.16175,2430.1,2429.6,0.81822]
[1728375610447,0.4117,2429.8,2429.6,0.81822]
[1728375610744,3.6195,2429.8,2429.6,0.81823]
[1728375612345,3.2078,2429.8,2429.7,0.41171]
[1728375613148,3.2078,2429.8,2429.6,0.4065]
[1728375613337,3.2078,2429.8,2429.7,0.41171]
[1728375614839,7.3238,2429.8,2429.6,0.41172]
[1728375615047,7.7355,2429.8,2429.6,0.41172]
[1728375616037,3.6195,2429.8,2429.6,0.41172]
[1728375616245,6.4278,2429.8,2429.4,0.4271]
[1728375616445,0.41178,2429.4,2429.1,0.41181]
[1728375616645,0.41178,2429.4,2429.2,0.41179]
[1728375616646,0.4215,2429.3,2429.2,0.41179]
[1728375619157,0.4215,2429.3,2429.1,0.4118]
[1728375619348,0.4215,2429.3,2429.2,0.4118]
[1728375621046,0.41172,2429.7,2429.5,0.41174]
[1728375621245,3.2078,2429.6,2429.5,0.41174]
[1728375621858,3.2078,2429.6,2429.2,0.4106]
[1728375622052,3.61953,2429.6,2429.4,0.41175]
[1728375622251,3.61953,2429.6,2429.5,0.3875]
[1728375622753,3.2078,2429.6,2429.5,0.79925]
[1728375628958,3.61953,2429.6,2429.5,0.3875]
[1728375629149,7.3238,2429.6,2429.2,0.4106]
[1728375629350,0.41177,2429.4,2429.2,0.8224]
[1728375630652,0.41177,2429.4,2429.1,0.4198]
[1728375630653,0.41177,2429.4,2429.1,0.8316]
[1728375630854,0.4126,2429.3,2429.1,0.8316]
[1728375631155,0.4126,2429.3,2429.1,0.4198]
[1728375631354,0.4126,2429.3,2429.2,0.4118]
[1728375632453,10.9572,2429.3,2428.8,0.4126]
[1728375632654,6.4278,2429.3,2429.2,0.61641831]
[1728375632856,6.83958,2429.3,2429.2,0.61641831]
[1728375633550,10.5446,2429.3,2428.8,0.8304]
[1728375633759,3.63184,2429.0,2428.8,1.03421831]
[1728375634062,3.63184,2429.0,2428.8,1.44607831]
[1728375635255,0.41185,2428.9,2428.8,0.61641831]
[1728375635456,0.41189,2428.7,2428.5,1.02944204]
[1728375635659,1.02958,2429.1,2428.5,1.64586035]
[1728375635660,3.6197,2428.6,2428.5,1.64586035]
[1728375635860,3.2078,2428.6,2428.5,1.64586035]
[1728375637167,6.8397,2428.6,2428.5,1.64586035]
[1728375637379,7.2636,2428.6,2428.5,1.64586035]
[1728375637870,7.51582866,2428.6,2428.5,1.64586035]
[1728375638963,17.63342866,2428.6,2428.5,1.02944204]
[1728375642671,17.63342866,2428.6,2428.1,0.4839]
[1728375642672,0.41197,2428.2,2428.1,0.096]
[1728375642868,3.61977,2428.2,2428.1,0.61641831]
[1728375643466,7.3262,2428.2,2427.8,0.41203]
[1728375643672,7.3262,2428.2,2428.0,0.61641831]
[1728375643673,0.412,2428.1,2428.0,0.61641831]
[1728375644566,0.41203,2427.8,2427.7,0.7987]
[1728375644878,0.41203,2427.8,2427.7,0.3982]
[1728375645069,0.41203,2427.8,2427.7,0.61641831]
[1728375646766,0.41203,2427.8,2427.4,0.3972]
[1728375646767,4.1192,2427.8,2427.4,0.3972]
[1728375646966,6.83988,2427.6,2427.5,0.61641831]
[1728375647873,0.4121,2427.5,2427.3,0.3898]
[1728375648083,0.4121,2427.5,2427.4,0.61641831]
[1728375648265,0.4121,2427.5,2426.8,0.096]
[1728375648266,9.22,2427.5,2426.8,0.096]
[1728375648465,9.22,2427.5,2427.0,0.61641831]
[1728375648466,3.63215,2427.1,2427.0,0.61641831]
[1728375649366,3.22,2427.1,2427.0,0.61641831]
[1728375649571,40.8,2427.3,2427.0,0.61641831]
[1728375649775,40.8,2427.3,2427.2,0.61641831]
[1728375649967,41.21212,2427.3,2427.2,0.61641831]
[1728375650173,0.41212,2427.3,2427.2,0.61641831]
[1728375650572,0.24727517,2427.3,2427.2,0.61641831]
[1728375650797,0.41211,2427.4,2427.2,0.61641831]
[1728375650977,6.4278,2427.5,2426.9,0.3848]
[1728375650978,3.22,2427.3,2426.9,0.79698]
[1728375651179,3.61995,2427.2,2427.0,0.61641831]
[1728375652671,0.41215,2427.1,2427.0,0.61641831]
[1728375654684,3.6079,2427.2,2427.0,0.61641831]
[1728375654877,3.2078,2427.2,2427.0,1.02857831]
[1728375655077,0.41213,2427.3,2427.1,0.61641831]
[1728375655279,0.41213,2427.3,2427.2,0.61641831]
[1728375655579,0.41213,2427.3,2427.2,1.03991831]
[1728375656473,6.6699117,2427.5,2427.2,1.03991831]
[1728375656677,0.41212,2427.4,2427.3,0.61641831]
[1728375660475,6.6699117,2427.5,2427.4,0.4121]
[1728375660476,3.2078,2427.5,2427.4,0.4121]
[1728375660676,3.6462,2428.0,2427.4,1.00171831]
[1728375660677,6.67387048,2428.0,2427.4,1.00171831]
[1728375660876,3.2078,2428.0,2427.8,0.61641831]
[1728375661185,3.2078,2428.0,2427.9,1.41373831]
[1728375661880,3.2078,2428.5,2428.2,0.41195]
[1728375662073,3.61972,2428.5,2428.4,0.61641831]
[1728375663480,3.61972,2428.5,2427.9,0.8033]
[1728375663481,3.2078,2428.5,2427.9,0.8033]
[1728375663682,0.41199,2428.1,2427.9,0.8033]
[1728375665275,0.41199,2428.1,2427.9,0.3853]
[1728375665276,0.412,2428.0,2427.9,0.3853]
[1728375666076,3.2078,2428.2,2427.9,0.3853]
[1728375666278,3.2078,2428.2,2428.0,0.83669]
[1728375667788,3.2078,2428.2,2428.1,0.41198]
[1728375668083,3.2078,2428.5,2428.1,4.1184]
[1728375668290,3.2078,2428.5,2428.4,0.41193]
[1728375668681,3.2078,2428.5,2428.4,4.52953]
[1728375670790,3.2078,2428.5,2428.4,0.41193]
[1728375670985,3.2078,2428.5,2428.4,4.52953]
[1728375671486,3.46932237,2429.0,2428.4,4.52953]
[1728375671487,3.2078,2428.8,2428.4,4.1176]
[1728375671788,0.826,2429.2,2429.0,0.41181]
[1728375671789,3.2078,2429.2,2429.0,0.41181]
[1728375671990,3.2078,2429.2,2429.1,0.82831]
[1728375672192,0.41177,2429.4,2429.2,0.41179]
[1728375672393,3.2078,2429.5,2429.1,0.8283]
[1728375672599,0.41178,2429.3,2429.1,0.8283]
[1728375673786,3.2078,2429.5,2429.1,0.8283]
[1728375674095,3.2078,2429.2,2429.1,0.4165]
[1728375674593,3.2078,2429.2,2429.1,0.82831]
[1728375675185,3.2078,2429.2,2429.1,0.4165]
[1728375675696,3.6196,2429.2,2429.1,0.4165]
[1728375677393,3.2078,2429.2,2429.1,0.82831]
[1728375678895,3.6196,2429.2,2429.1,0.4165]
[1728375679893,3.2078,2429.2,2429.1,0.4165]
[1728375680992,3.2078,2429.2,2429.1,0.82831]
[1728375682193,3.2078,2429.2,2429.1,0.4165]
[1728375683102,3.2078,2429.2,2429.1,0.82831]
[1728375688001,3.2078,2429.2,2429.1,0.4165]
[1728375688203,3.6196,2429.2,2429.1,0.4165]
[1728375688402,0.4118,2429.2,2429.1,0.4165]
[1728375688912,0.3966,2429.3,2429.1,0.4165]
[1728375689108,0.80839,2429.3,2429.1,0.82831]
[1728375689299,0.4118,2429.2,2429.1,0.4165]
[1728375690098,0.80839,2429.3,2429.1,0.82831]
[1728375690498,3.2078,2429.5,2429.1,0.4165]
[1728375690705,3.61955,2429.5,2429.3,0.41177]
[1728375690909,3.61955,2429.5,2429.4,0.41176]
[1728375690910,3.2078,2429.5,2429.4,0.41176]
[1728375691210,3.2078,2429.5,2429.4,4.92256]
[1728375691809,0.64588779,2430.0,2429.4,4.92256]
[1728375692107,0.41171,2429.7,2429.5,0.41174]
[1728375692307,0.41171,2429.7,2429.6,0.3932]
[1728375693410,0.4117,2429.8,2429.6,0.3932]
[1728375694919,0.41171,2429.7,2429.6,0.3932]
[1728375695105,0.41175,2429.5,2429.3,0.41177]
[1728375695310,0.41175,2429.5,2429.2,0.8382]
[1728375695507,0.41175,2429.5,2429.3,0.41178]
[1728375695827,3.6065,2429.5,2428.8,0.096]
[1728375696118,3.6065,2429.5,2428.9,0.4053]
[1728375696119,0.41182,2429.1,2428.9,0.4053]
[1728375696301,6.4278,2429.3,2428.9,0.4053]
[1728375696506,6.4278,2429.3,2428.7,0.4254]
[1728375696507,3.61964,2429.0,2428.7,0.4254]
[1728375696907,3.61964,2429.0,2428.7,0.83728]
[1728375697211,3.61964,2429.0,2428.7,0.4254]
[1728375697212,3.2078,2429.0,2428.7,0.4254]
[1728375697423,0.41188,2428.7,2428.6,0.4053]
[1728375697621,0.41188,2428.7,2428.4,0.80383]
[1728375697622,3.2078,2428.7,2428.1,3.22]
[1728375697827,0.41191,2428.6,2428.3,0.41195]
[1728375698228,3.2078,2428.7,2428.4,0.41192]
[1728375698443,1.06037846,2428.9,2428.6,0.4119]
[1728375698824,0.64852846,2428.9,2428.5,0.41191]
[1728375699024,1.06038846,2428.9,2428.5,0.41191]
[1728375699319,1.06038846,2428.9,2428.6,0.405]
[1728375699520,0.41187,2428.8,2428.6,0.405]
[1728375699925,3.2078,2428.7,2428.6,0.405]
[1728375701322,7.3254,2428.7,2428.3,0.41194]
[1728375701518,3.61969,2428.7,2428.4,0.41193]
[1728375704421,3.2078,2428.7,2428.5,0.41191]
[1728375704623,3.61968,2428.7,2428.5,0.41191]
[1728375704822,3.2078,2428.7,2428.2,0.405]
[1728375705123,3.2078,2428.7,2428.2,0.81696]
[1728375705124,0.41193,2428.5,2428.2,0.81696]
[1728375705920,0.3988,2428.6,2428.2,0.405]
[1728375706238,1.02988,2428.3,2427.9,0.096]
[1728375706532,6.8181,2428.4,2427.8,0.41203]
[1728375706533,0.41201,2428.0,2427.8,0.41203]
[1728375706722,3.2078,2428.1,2427.8,0.41203]
[1728375706922,3.61979,2428.1,2427.8,0.41203]
[1728375707430,3.5981,2428.4,2428.0,3.22]
[1728375707634,0.3988,2428.6,2428.1,0.4186]
[1728375707830,44.80999,2428.7,2428.4,0.41192]
[1728375708426,0.41191,2428.6,2428.3,0.41194]
[1728375709527,4.00999,2428.7,2428.4,0.41193]
[1728375709732,4.00999,2428.7,2428.2,3.6442]
[1728375709733,3.5981,2428.7,2428.2,3.6442]
[1728375709952,3.2078,2428.7,2428.5,0.41191]
[1728375710228,3.2078,2428.7,2428.2,3.6442]
[1728375710229,3.2078,2428.7,2428.4,0.41192]
[1728375710438,0.41191,2428.6,2428.3,0.41194]
[1728375710823,3.2078,2428.7,2428.2,3.6442]
[1728375711030,3.61969,2428.7,2428.4,0.41192]
[1728375711225,3.61969,2428.7,2428.2,3.6442]
[1728375711226,3.2078,2428.7,2428.5,0.41191]
[1728375711531,3.2078,2428.7,2428.2,3.6442]
[1728375711732,3.2078,2428.7,2428.6,0.4119]
[1728375712030,3.2078,2428.7,2428.6,3.6319]
[1728375712226,3.2078,2428.7,2428.6,7.7495]
[1728375712428,3.2078,2428.7,2428.6,13.7495]
[1728375713129,3.2078,2429.0,2428.6,13.7495]
[1728375713331,3.2078,2429.0,2428.9,3.63185]
[1728375713639,0.41179,2429.3,2429.1,0.41181]
[1728375714137,0.41179,2429.3,2429.0,0.41182]
[1728375714433,0.41179,2429.3,2429.1,0.4118]
[1728375715139,0.41177,2429.4,2429.2,0.41179]
[1728375715341,1.1836,2429.5,2429.2,0.41179]
[1728375715529,0.41177,2429.4,2428.9,3.22]
[1728375715728,0.41178,2429.3,2429.1,0.41181]
[1728375716130,1.1836,2429.5,2429.1,0.41181]
[1728375716335,0.41177,2429.4,2429.1,0.41181]
[1728375718138,0.41178,2429.3,2429.0,0.41182]
[1728375718635,0.41178,2429.3,2429.1,0.41181]
[1728375719437,0.41177,2429.4,2429.1,0.41181]
[1728375720225,0.41177,2429.4,2428.8,3.2078]
[1728375720632,0.41177,2429.4,2428.9,0.41185]
[1728375720832,0.41177,2429.4,2429.2,0.41179]
[1728375721033,0.41177,2429.4,2429.1,0.4118]
[1728375721537,0.41177,2429.4,2428.8,3.2078]
[1728375721733,0.41177,2429.4,2429.1,0.41181]
[1728375722333,0.41177,2429.4,2429.2,0.41179]
[1728375722643,0.41176,2429.4,2429.1,0.41181]
[1728375722840,1.1836,2429.5,2429.1,0.41181]
[1728375723441,0.41176,2429.4,2429.1,0.41181]
[1728375723839,1.1836,2429.5,2429.3,0.41177]
[1728375723840,1.20266,2429.5,2429.3,0.41177]
[1728375724041,0.24622534,2429.7,2429.1,3.22]
[1728375724241,0.4047,2429.8,2429.7,0.41171]
[1728375724539,0.41169,2429.9,2429.6,0.41172]
[1728375724734,0.8193,2430.0,2429.7,0.4117]
[1728375724735,1.23097,2430.0,2429.7,0.4117]
[1728375724933,0.8193,2430.0,2429.7,0.4117]
[1728375725135,0.8193,2430.0,2429.3,3.22]
[1728375725334,1.06399708,2430.0,2429.3,3.22]
[1728375725534,1.47566708,2430.0,2429.7,0.41171]
[1728375725839,3.61948,2429.9,2429.6,0.41172]
[1728375726439,3.2078,2429.9,2429.6,0.41172]
[1728375726741,0.41172,2429.7,2429.4,0.41176]
[1728375728741,3.2078,2429.6,2429.2,0.79819]
[1728375728946,1.20655,2429.5,2429.3,0.41178]
[1728375729445,1.20655,2429.5,2429.2,0.3864]
[1728375729446,0.7948,2429.5,2429.2,0.3864]
[1728375729847,0.7948,2429.5,2429.2,0.79819]
[1728375729848,1.20656,2429.5,2429.2,0.79819]
[1728375730045,1.20656,2429.5,2429.2,0.7982]
[1728375730046,0.41177,2429.4,2429.2,0.7982]
[1728375730344,3.2078,2429.6,2429.4,0.41176]
[1728375730541,3.2078,2429.6,2429.3,0.4255]
[1728375730749,0.41175,2429.5,2429.2,0.79818]
[1728375731135,0.41175,2429.5,2429.2,0.3864]
[1728375731341,3.61954,2429.6,2429.3,0.41178]
[1728375731942,3.2078,2429.6,2429.3,0.41178]
[1728375732143,0.41175,2429.5,2429.3,0.41178]
[1728375732549,0.41175,2429.5,2429.2,0.79819]
[1728375732750,0.41177,2429.4,2429.2,0.79819]
[1728375733049,0.3886,2429.5,2429.2,0.3864]
[1728375733246,0.4211,2429.4,2429.1,3.6333]
[1728375733448,0.4211,2429.4,2428.8,0.096]
[1728375733449,0.41182,2429.1,2428.9,0.83204]
[1728375734051,0.4118,2429.2,2428.9,0.4202]
[1728375734251,0.4118,2429.2,2429.0,0.41182]
[1728375734846,0.8392,2429.4,2429.0,0.41182]
[1728375735047,0.41178,2429.3,2429.0,0.41183]
[1728375735447,0.8392,2429.4,2428.9,0.4202]
[1728375735649,1.02946,2429.3,2428.9,0.4202]
[1728375735851,0.41185,2428.9,2428.8,3.5955]
[1728375736048,0.41183,2429.0,2428.8,3.5955]
[1728375736247,41.6392,2429.4,2428.8,3.5955]
[1728375736451,0.41181,2429.1,2428.8,4.00735]
[1728375736749,3.2078,2429.3,2428.8,3.5955]
[1728375736951,0.41181,2429.1,2428.8,3.5955]
[1728375737554,0.41181,2429.1,2428.8,4.00735]
[1728375737753,0.41183,2429.0,2428.8,3.5955]
[1728375739754,3.2078,2429.3,2428.8,3.5955]
[1728375739950,0.41182,2429.1,2428.8,4.00735]
[1728375740958,0.41182,2429.1,2428.8,3.5955]
[1728375741850,3.2078,2429.3,2428.8,3.5955]
[1728375742057,3.2078,2429.3,2428.9,3.22]
[1728375742257,3.61958,2429.3,2429.0,0.41182]
[1728375742446,3.61958,2429.3,2429.0,0.83862]
[1728375742860,0.4118,2429.2,2429.0,0.4268]
[1728375743055,0.41181,2429.1,2429.0,0.4268]
[1728375743756,5.07642,2429.4,2428.8,4.00735]
[1728375743757,5.07642,2429.4,2428.8,0.3877]
[1728375743953,0.41183,2429.0,2428.8,0.3877]
[1728375744158,0.41183,2429.0,2428.8,0.79955]
[1728375744350,0.41184,2428.9,2428.8,0.3877]
[1728375746851,0.3896,2429.1,2428.6,0.4268]
[1728375746852,3.2078,2429.0,2428.6,0.4268]
[1728375747055,3.2078,2429.0,2428.3,3.22]
[1728375747250,0.41191,2428.5,2428.3,0.8252]
[1728375747454,0.4119,2428.6,2428.3,1.23713]
[1728375747653,0.41189,2428.4,2428.3,0.8252]
[1728375748351,0.41189,2428.5,2428.3,0.8252]
[1728375748758,0.41189,2428.5,2428.3,1.23711]
[1728375750756,0.41189,2428.5,2428.3,0.8252]
[1728375751857,0.41189,2428.4,2428.3,0.8252]
[1728375752254,0.41189,2428.4,2428.3,0.4142]
[1728375752456,6.8278,2428.7,2428.1,0.4162]
[1728375752755,0.41193,2428.2,2428.1,0.4162]
[1728375753351,0.41193,2428.2,2427.9,0.4165]
[1728375753555,0.41193,2428.2,2428.0,0.82666]
[1728375755955,0.41193,2428.2,2428.0,0.4147]
[1728375756157,0.4028,2428.3,2427.9,0.4165]
[1728375756359,0.3863,2428.2,2427.9,0.4165]
[1728375756663,0.41195,2428.1,2427.9,0.4165]
[1728375756963,0.41194,2428.1,2427.9,0.4165]
[1728375757157,0.41194,2428.1,2427.9,0.82847]
[1728375759664,0.41196,2428.0,2427.9,0.4165]
[1728375760565,0.41195,2428.1,2427.9,0.82848]
[1728375762670,0.4028,2428.3,2427.9,0.82848]
[1728375762671,0.41191,2428.3,2428.2,0.41193]
[1728375762863,4.24962,2428.7,2427.9,6.8443]
[1728375762864,0.8182,2428.6,2427.9,6.8443]
[1728375763364,0.4119,2428.4,2428.2,0.41192]
[1728375764155,0.4119,2428.4,2427.9,6.8443]
[1728375764361,0.41192,2428.3,2428.1,0.41193]
[1728375764561,0.41192,2428.3,2428.2,0.3947]
[1728375767463,0.41187,2428.5,2428.2,0.80661]
[1728375767763,0.8182,2428.6,2428.2,0.3947]
[1728375768068,0.8182,2428.6,2428.3,0.81581]
[1728375768069,0.4119,2428.4,2428.3,0.81581]
[1728375768262,0.4119,2428.4,2428.3,0.4039]
[1728375771968,0.8182,2428.6,2428.3,0.4039]
[1728375772274,1.23007,2428.6,2428.4,0.41189]
[1728375772576,1.23007,2428.6,2428.3,0.8158]
[1728375772577,0.41188,2428.5,2428.3,0.8158]
[1728375772798,0.41186,2428.6,2428.4,0.41188]
[1728375773964,0.41187,2428.5,2428.4,0.41188]
[1728375778987,4.1176,2428.5,2428.2,3.6025]
[1728375779179,4.23484614,2428.8,2427.8,1.2117]
[1728375779180,8.1852,2428.4,2427.8,1.2117]
[1728375779384,0.41198,2427.9,2427.8,0.8254]